lending/lending_fUSD_20250130
["ID","MTS","AMOUNT","RATE_DAILY","PERIOD"]
[350983437,1738266650125,-500.0,0.00019178,2]
[350983438,1738266650135,-3468.58,0.00019178,2]
[350983439,1738266650146,-500.0,0.00019178,2]
[350983440,1738266650156,-823.44,0.00019178,2]
[350983441,1738266650166,-1253.61,0.00019178,2]
[350983442,1738266650176,-500.0,0.00019178,2]
[350983443,1738266650186,-1772.07,0.00019178,2]
[350983444,1738266650196,-944.61,0.00019178,2]
[350983445,1738266650206,-2322.18,0.00019178,2]
[350983446,1738266650216,-2011.04,0.00019178,2]
[350983447,1738266650453,-408.46642065,0.00019178,2]
[350983448,1738266650465,-892.96,0.00019178,2]
[350983449,1738266650475,-1826.98,0.00019178,2]
[350983450,1738266650485,-500.0,0.00019178,2]
[350983451,1738266650495,-151.0,0.00019178,2]
[350983452,1738266650504,-500.0,0.00019178,2]
[350983453,1738266650514,-1352.88,0.00019178,2]
[350983454,1738266650523,-500.0,0.00019178,2]
[350983455,1738266650534,-1343.62,0.00019178,2]
[350983456,1738266650543,-500.0,0.00019178,2]
[350983457,1738266650553,-150.61,0.00019178,2]
[350983458,1738266650563,-17468.53778008,0.00019192,2]
[350983459,1738266650572,-2492.0,0.000192,2]
[350983460,1738266650582,-252.39083548,0.00019214,2]
[350983461,1738266650592,-357.61653794,0.00019215,2]
[350983462,1738266650601,-17468.53778008,0.00019224,2]
[350983463,1738266650611,-17468.53778008,0.00019256,2]
[350983464,1738266650621,-151.0,0.00019279,2]
[350983465,1738266650631,-151.0,0.00019279,2]
[350983466,1738266650640,-151.0,0.00019279,2]
[350983467,1738266650650,-151.0,0.00019279,2]
[350983468,1738266650660,-151.0,0.00019279,2]
[350983469,1738266650669,-151.0,0.00019279,2]
[350983470,1738266650679,-151.0,0.00019279,2]
[350983471,1738266650689,-4831.24821096,0.00019279,2]
[350983472,1738266650698,-17468.53778008,0.00019288,2]
[350983473,1738266650707,-500.0,0.00019296,2]
[350983474,1738266650717,-173.35964052,0.000193,2]
[350983475,1738266650727,-169.39636404,0.000193,2]
[350983476,1738266650737,-151.0,0.000193,2]
[350983477,1738266650746,-151.0,0.000193,2]
[350983478,1738266650756,-174.484202,0.000193,2]
[350983479,1738266650765,-151.0,0.000193,2]
[350983480,1738266650775,-8952.81660962,0.000193,2]
[350983481,1738266650785,-2508.00540174,0.000193,2]
[350983482,1738266650795,-500.0,0.00019314,3]
[350983483,1738266650804,-500.0,0.00019314,3]
[350983484,1738266650814,-300.0,0.00019314,2]
[350983485,1738266650824,-5803.71,0.00019314,3]
[350983486,1738266650833,-5803.71,0.00019314,3]
[350983487,1738266650843,-999.0,0.00019314,2]
[350983488,1738266650853,-424.921278,0.00019314,2]
[350983489,1738266650863,-151.0,0.00019314,2]
[350983490,1738266650872,-424.921278,0.00019314,2]
[350983491,1738266650882,-151.0,0.00019314,2]
[350983492,1738266650891,-231.423638,0.00019314,2]
[350983493,1738266650902,-151.0,0.00019314,2]
[350983494,1738266650914,-556.22014673,0.00019315,3]
[350983495,1738266650924,-500.0,0.00019315,3]
[350983496,1738266650935,-1686.393964,0.00019315,3]
[350983497,1738266650946,-500.0,0.00019315,3]
[350983498,1738266650956,-500.0,0.00019315,3]
[350983499,1738266650966,-500.0,0.00019315,3]
[350983500,1738266650976,-500.0,0.00019315,3]
[350983501,1738266650985,-500.0,0.00019315,3]
[350983502,1738266650995,-500.0,0.00019315,3]
[350983503,1738266651005,-500.0,0.00019315,3]
[350983504,1738266651015,-500.0,0.00019315,3]
[350983505,1738266651024,-500.0,0.00019315,3]
[350983506,1738266651034,-1518.488196,0.00019315,3]
[350983507,1738266651044,-500.0,0.00019315,3]
[350983508,1738266651054,-500.0,0.00019315,3]
[350983509,1738266651063,-500.0,0.00019315,3]
[350983510,1738266651073,-500.0,0.00019315,3]
[350983511,1738266651083,-512.27,0.00019315,3]
[350983512,1738266651092,-500.0,0.00019315,3]
[350983513,1738266651102,-500.0,0.00019315,3]
[350983514,1738266651112,-500.0,0.00019315,3]
[350983515,1738266651124,-500.0,0.00019315,3]
[350983516,1738266651134,-500.0,0.00019315,3]
[350983517,1738266651145,-500.0,0.00019315,3]
[350983518,1738266651155,-504.48842856,0.00019315,3]
[350983519,1738266651165,-500.0,0.00019315,3]
[350983520,1738266651175,-500.0,0.00019315,3]
[350983521,1738266651185,-500.0,0.00019315,3]
[350983522,1738266651195,-481.95567984,0.00019315,3]
[350983523,1738266651204,-500.0,0.00019315,3]
[350983524,1738266651214,-500.0,0.00019315,3]
[350983525,1738266651223,-500.0,0.00019315,3]
[350983526,1738266651233,-500.0,0.00019315,3]
[350983527,1738266651243,-500.0,0.00019315,3]
[350983528,1738266651253,-500.0,0.00019315,3]
[350983529,1738266651262,-500.0,0.00019315,3]
[350983530,1738266651272,-500.0,0.00019315,3]
[350983531,1738266651282,-500.0,0.00019315,3]
[350983532,1738266651292,-501.42571693,0.00019315,3]
[350983533,1738266651302,-500.0,0.00019315,3]
[350983534,1738266651311,-500.0,0.00019315,3]
[350983535,1738266651321,-500.0,0.00019315,3]
[350983536,1738266651331,-500.0,0.00019315,3]
[350983537,1738266651342,-500.0,0.00019315,3]
[350983538,1738266651352,-500.0,0.00019315,3]
[350983539,1738266651363,-773.44,0.00019315,3]
[350983540,1738266651373,-276.96032944,0.00019315,3]
[350983541,1738266651383,-500.0,0.00019315,3]
[350983542,1738266651393,-660.63,0.00019315,3]
[350983543,1738266651403,-151.0,0.00019315,2]
[350983544,1738266651413,-500.0,0.00019315,3]
[350983545,1738266651424,-500.0,0.00019315,3]
[350983546,1738266651434,-500.0,0.00019315,3]
[350983547,1738266651444,-500.0,0.00019315,3]
[350983548,1738266651454,-399.77411526,0.00019315,3]
[350983549,1738266651464,-500.0,0.00019315,3]
[350983550,1738266651473,-500.0,0.00019315,3]
[350983551,1738266651483,-500.0,0.00019315,3]
[350983552,1738266651493,-500.0,0.00019315,3]
[350983553,1738266651502,-500.0,0.00019315,3]
[350983554,1738266651513,-500.0,0.00019315,3]
[350983555,1738266651523,-500.0,0.00019315,3]
[350983556,1738266651532,-557.07,0.00019315,3]
[350983557,1738266651542,-455.41513598,0.00019315,3]
[350983558,1738266651552,-500.0,0.00019315,3]
[350983559,1738266651562,-721.59,0.00019315,3]
[350983560,1738266651571,-500.0,0.00019315,3]
[350983561,1738266651581,-500.0,0.00019315,3]
[350983562,1738266651591,-500.0,0.00019315,3]
[350983563,1738266651601,-547.80233641,0.00019315,3]
[350983564,1738266651610,-500.0,0.00019315,3]
[350983565,1738266651620,-500.0,0.00019315,3]
[350983566,1738266651630,-723.46,0.00019315,3]
[350983567,1738266651639,-528.23235575,0.00019315,3]
[350983568,1738266651649,-634.98322698,0.00019315,3]
[350983569,1738266651659,-500.0,0.00019315,3]
[350983570,1738266651669,-500.0,0.00019315,3]
[350983571,1738266651679,-500.0,0.00019315,3]
[350983572,1738266651688,-500.0,0.00019315,3]
[350983573,1738266651697,-500.0,0.00019315,3]
[350983574,1738266651707,-500.0,0.00019315,3]
[350983575,1738266651717,-500.0,0.00019315,3]
[350983576,1738266651726,-779.71,0.00019315,3]
[350983577,1738266651735,-250.4474991,0.00019315,3]
[350983578,1738266651745,-505.55616516,0.00019315,3]
[350983579,1738266651755,-500.0,0.00019315,3]
[350983580,1738266651765,-500.0,0.00019315,3]
[350983581,1738266651774,-500.0,0.00019315,3]
[350983582,1738266651784,-681.3,0.00019315,3]
[350983583,1738266651793,-500.0,0.00019315,3]
[350983584,1738266651803,-500.0,0.00019315,3]
[350983585,1738266651812,-500.0,0.00019315,3]
[350983586,1738266651822,-275.74349969,0.00019315,3]
[350983587,1738266651831,-500.0,0.00019315,3]
[350983588,1738266651840,-555.6,0.00019315,3]
[350983589,1738266651850,-680.88,0.00019315,3]
[350983590,1738266651860,-500.0,0.00019315,3]
[350983591,1738266651869,-500.0,0.00019315,3]
[350983592,1738266651880,-500.0,0.00019315,3]
[350983593,1738266651890,-500.0,0.00019315,3]
[350983594,1738266651899,-213.80531747,0.00019315,3]
[350983595,1738266651909,-1027.44,0.00019315,3]
[350983596,1738266651919,-500.0,0.00019315,3]
[350983597,1738266651928,-500.0,0.00019315,3]
[350983598,1738266651938,-500.0,0.00019315,3]
[350983599,1738266651948,-500.0,0.00019315,3]
[350983600,1738266651958,-500.0,0.00019315,3]
[350983601,1738266651968,-500.0,0.00019315,3]
[350983602,1738266651977,-500.0,0.00019315,3]
[350983603,1738266651987,-500.0,0.00019315,3]
[350983604,1738266651997,-500.0,0.00019315,3]
[350983605,1738266652007,-500.0,0.00019315,3]
[350983606,1738266652018,-500.0,0.00019315,3]
[350983607,1738266652027,-500.0,0.00019315,3]
[350983608,1738266652036,-500.0,0.00019315,3]
[350983609,1738266652046,-500.0,0.00019315,3]
[350983610,1738266652055,-2688.13,0.00019315,3]
[350983611,1738266652065,-500.0,0.00019315,3]
[350983612,1738266652075,-1186.58,0.00019315,3]
[350983613,1738266652084,-2057.41,0.00019315,3]
[350983614,1738266652093,-500.0,0.00019315,3]
[350983615,1738266652103,-500.0,0.00019315,3]
[350983616,1738266652113,-500.0,0.00019315,3]
[350983617,1738266652122,-500.0,0.00019315,3]
[350983618,1738266652132,-500.0,0.00019315,3]
[350983619,1738266652141,-500.0,0.00019315,3]
[350983620,1738266652151,-500.0,0.00019315,3]
[350983621,1738266652161,-5000.0,0.00019315,3]
[350983622,1738266652170,-151.0,0.00019315,2]
[350983623,1738266652180,-1074.16,0.00019315,3]
[350983624,1738266652190,-500.0,0.00019315,3]
[350983625,1738266652200,-500.0,0.00019315,3]
[350983626,1738266652210,-500.0,0.00019315,3]
[350983627,1738266652219,-521.65,0.00019315,3]
[350983628,1738266652229,-500.0,0.00019315,3]
[350983629,1738266652240,-1276.26,0.00019315,3]
[350983630,1738266652249,-2640.8,0.00019315,3]
[350983631,1738266652260,-500.0,0.00019315,3]
[350983632,1738266652270,-1126.53,0.00019315,3]
[350983633,1738266652280,-500.0,0.00019315,3]
[350983634,1738266652290,-896.71,0.00019315,3]
[350983635,1738266652300,-500.0,0.00019315,3]
[350983636,1738266652310,-936.06,0.00019315,3]
[350983637,1738266652319,-2263.21,0.00019315,3]
[350983638,1738266652329,-536.75,0.00019315,3]
[350983639,1738266652342,-500.0,0.00019315,3]
[350983640,1738266652351,-500.0,0.00019315,3]
[350983641,1738266652361,-500.0,0.00019315,3]
[350983642,1738266652371,-500.0,0.00019315,3]
[350983643,1738266652380,-533.04836826,0.00019315,3]
[350983644,1738266652390,-500.0,0.00019315,3]
[350983645,1738266652399,-600.83,0.00019315,3]
[350983646,1738266652409,-500.0,0.00019315,3]
[350983647,1738266652419,-500.0,0.00019315,3]
[350983648,1738266652429,-1034.53,0.00019315,3]
[350983649,1738266652440,-500.0,0.00019315,3]
[350983650,1738266652450,-500.0,0.00019315,3]
[350983651,1738266652460,-500.0,0.00019315,3]
[350983652,1738266652471,-1377.12,0.00019315,3]
[350983653,1738266652481,-500.0,0.00019315,3]
[350983654,1738266652491,-1547.29,0.00019315,3]
[350983655,1738266652502,-500.0,0.00019315,3]
[350983656,1738266652512,-505.68227486,0.00019315,3]
[350983657,1738266652523,-500.0,0.00019315,3]
[350983658,1738266652532,-500.0,0.00019315,3]
[350983659,1738266652543,-2085.43,0.00019315,3]
[350983660,1738266652553,-151.0,0.00019315,2]
[350983661,1738266652564,-151.0,0.00019315,2]
[350983662,1738266652574,-2388.09,0.00019315,3]
[350983663,1738266652584,-500.0,0.00019315,3]
[350983664,1738266652595,-151.0,0.00019315,2]
[350983665,1738266652605,-151.0,0.00019315,2]
[350983666,1738266652614,-500.0,0.00019315,3]
[350983667,1738266652624,-500.0,0.00019315,3]
[350983668,1738266652634,-766.04,0.00019315,3]
[350983669,1738266652645,-500.0,0.00019315,3]
[350983670,1738266652655,-2148.9,0.00019315,3]
[350983671,1738266652664,-947.28,0.00019315,3]
[350983672,1738266652675,-500.0,0.00019315,3]
[350983673,1738266652684,-500.0,0.00019315,3]
[350983674,1738266652696,-500.0,0.00019315,3]
[350983675,1738266652708,-500.0,0.00019315,3]
[350983676,1738266652718,-665.99,0.00019315,3]
[350983677,1738266652728,-500.0,0.00019315,3]
[350983678,1738266652738,-633.631395,0.00019315,2]
[350983679,1738266652748,-633.631395,0.00019315,2]
[350983680,1738266652758,-500.0,0.00019315,3]
[350983681,1738266652768,-500.0,0.00019315,3]
[350983682,1738266652778,-500.0,0.00019315,3]
[350983683,1738266652789,-509.63,0.00019315,3]
[350983684,1738266652894,-633.631395,0.00019315,2]
[350983685,1738266652904,-633.631395,0.00019315,2]
[350983686,1738266652915,-500.0,0.00019315,3]
[350983687,1738266652924,-500.0,0.00019315,3]
[350983688,1738266652934,-500.0,0.00019315,3]
[350983689,1738266652943,-151.0,0.00019315,2]
[350983690,1738266652953,-500.0,0.00019315,3]
[350983691,1738266652963,-500.0,0.00019315,3]
[350983692,1738266652972,-4154.5,0.00019315,3]
[350983693,1738266652982,-500.0,0.00019315,3]
[350983694,1738266652991,-964.64,0.00019315,3]
[350983695,1738266653001,-500.0,0.00019315,3]
[350983696,1738266653010,-724.1,0.00019315,3]
[350983697,1738266653020,-151.0,0.00019315,2]
[350983698,1738266653029,-151.0,0.00019315,2]
[350983699,1738266653038,-500.0,0.00019315,3]
[350983700,1738266653048,-500.0,0.00019315,3]
[350983701,1738266653058,-236.93324592,0.00019315,3]
[350983702,1738266653067,-500.0,0.00019315,3]
[350983703,1738266653078,-500.0,0.00019315,3]
[350983704,1738266653087,-1246.81,0.00019315,3]
[350983705,1738266653097,-500.0,0.00019315,3]
[350983706,1738266653106,-500.0,0.00019315,3]
[350983707,1738266653115,-500.0,0.00019315,3]
[350983708,1738266653126,-1374.92,0.00019315,3]
[350983709,1738266653136,-1377.43,0.00019315,3]
[350983710,1738266653145,-500.0,0.00019315,3]
[350983711,1738266653155,-743.1,0.00019315,3]
[350983712,1738266653164,-500.0,0.00019315,3]
[350983713,1738266653174,-500.0,0.00019315,3]
[350983714,1738266653184,-500.0,0.00019315,3]
[350983715,1738266653193,-500.0,0.00019315,2]
[350983716,1738266653203,-1059.83,0.00019315,3]
[350983717,1738266653213,-1130.24,0.00019315,3]
[350983718,1738266653222,-943.55,0.00019315,3]
[350983719,1738266653232,-500.0,0.00019315,3]
[350983720,1738266653242,-500.0,0.00019315,3]
[350983721,1738266653252,-500.0,0.00019315,3]
[350983722,1738266653263,-500.0,0.00019315,3]
[350983723,1738266653273,-508.96957904,0.00019315,3]
[350983724,1738266653283,-500.0,0.00019315,3]
[350983725,1738266653293,-500.0,0.00019315,3]
[350983726,1738266653302,-424.122057,0.00019315,2]
[350983727,1738266653312,-424.122057,0.00019315,2]
[350983728,1738266653321,-1080.38,0.00019315,3]
[350983729,1738266653330,-1238.9,0.00019315,3]
[350983730,1738266653342,-500.0,0.00019315,3]
[350983731,1738266653352,-424.122057,0.00019315,2]
[350983732,1738266653361,-424.122057,0.00019315,2]
[350983733,1738266653371,-500.0,0.00019315,3]
[350983734,1738266653379,-542.39,0.00019315,3]
[350983735,1738266653392,-1294.14,0.00019315,3]
[350983736,1738266653401,-500.0,0.00019315,3]
[350983737,1738266653411,-659.68,0.00019315,3]
[350983738,1738266653423,-1088.74,0.00019315,3]
[350983739,1738266653433,-1533.58,0.00019315,3]
[350983740,1738266653442,-500.0,0.00019315,3]
[350983741,1738266653451,-151.0,0.00019315,2]
[350983742,1738266653460,-151.0,0.00019315,2]
[350983743,1738266653469,-535.93,0.00019315,3]
[350983744,1738266653478,-500.0,0.00019315,3]
[350983745,1738266653487,-1139.58,0.00019315,3]
[350983746,1738266653497,-563.7,0.00019315,3]
[350983747,1738266653507,-1412.02,0.00019315,3]
[350983748,1738266653516,-2006.12,0.00019315,3]
[350983749,1738266653526,-500.0,0.00019315,3]
[350983750,1738266653537,-500.0,0.00019315,3]
[350983751,1738266653547,-500.0,0.00019315,3]
[350983752,1738266653556,-448.40228677,0.00019315,3]
[350983753,1738266653566,-500.0,0.00019315,3]
[350983754,1738266653576,-500.0,0.00019315,3]
[350983755,1738266653586,-1015.98,0.00019315,3]
[350983756,1738266653596,-741.26,0.00019315,3]
[350983757,1738266653605,-500.0,0.00019315,3]
[350983758,1738266653615,-500.0,0.00019315,3]
[350983759,1738266653625,-500.0,0.00019315,3]
[350983760,1738266653636,-549.01,0.00019315,3]
[350983761,1738266653645,-1906.84,0.00019315,3]
[350983762,1738266653655,-902.35,0.00019315,3]
[350983763,1738266653664,-1204.22,0.00019315,3]
[350983764,1738266653673,-500.0,0.00019315,3]
[350983765,1738266653682,-510.77921793,0.00019315,3]
[350983766,1738266653691,-908.85,0.00019315,3]
[350983767,1738266653702,-500.0,0.00019315,3]
[350983768,1738266653712,-500.0,0.00019315,3]
[350983769,1738266653722,-505.35291965,0.00019315,3]
[350983770,1738266653731,-741.37,0.00019315,3]
[350983771,1738266653741,-1040.22,0.00019315,3]
[350983772,1738266653750,-500.0,0.00019315,3]
[350983773,1738266653760,-500.0,0.00019315,3]
[350983774,1738266653769,-500.0,0.00019315,3]
[350983775,1738266653779,-500.0,0.00019315,3]
[350983776,1738266653788,-500.0,0.00019315,3]
[350983777,1738266653799,-547.58,0.00019315,3]
[350983778,1738266653808,-1003.73,0.00019315,3]
[350983779,1738266653818,-689.04,0.00019315,3]
[350983780,1738266653828,-503.66986764,0.00019315,3]
[350983781,1738266653837,-500.0,0.00019315,3]
[350983782,1738266653847,-1317.43,0.00019315,3]
[350983783,1738266653856,-1462.52,0.00019315,3]
[350983784,1738266653866,-500.0,0.00019315,3]
[350983785,1738266653875,-500.0,0.00019315,3]
[350983786,1738266653885,-1235.08,0.00019315,3]
[350983787,1738266653895,-1197.9,0.00019315,3]
[350983788,1738266653905,-985.01,0.00019315,3]
[350983789,1738266653914,-1623.25,0.00019315,3]
[350983790,1738266653924,-500.0,0.00019315,3]
[350983791,1738266653933,-500.0,0.00019315,3]
[350983792,1738266653943,-500.0,0.00019315,3]
[350983793,1738266653952,-500.0,0.00019315,3]
[350983794,1738266653962,-529.64,0.00019315,3]
[350983795,1738266653971,-1092.12,0.00019315,3]
[350983796,1738266653980,-500.0,0.00019315,3]
[350983797,1738266653989,-500.0,0.00019315,3]
[350983798,1738266653999,-500.0,0.00019315,3]
[350983799,1738266654009,-500.0,0.00019315,3]
[350983800,1738266654019,-500.0,0.00019315,3]
[350983801,1738266654029,-500.0,0.00019315,3]
[350983802,1738266654039,-500.0,0.00019315,3]
[350983803,1738266654049,-500.0,0.00019315,3]
[350983804,1738266654058,-1775.58,0.00019315,3]
[350983805,1738266654068,-1034.38,0.00019315,3]
[350983806,1738266654078,-500.0,0.00019315,3]
[350983807,1738266654087,-672.77,0.00019315,3]
[350983808,1738266654097,-628.25,0.00019315,3]
[350983809,1738266654106,-1547.69,0.00019315,3]
[350983810,1738266654116,-151.0,0.00019315,2]
[350983811,1738266654126,-151.0,0.00019315,2]
[350983812,1738266654135,-500.0,0.00019315,3]
[350983813,1738266654145,-1351.76,0.00019315,3]
[350983814,1738266654155,-2201.75,0.00019315,3]
[350983815,1738266654164,-534.32776081,0.00019315,3]
[350983816,1738266654173,-500.0,0.00019315,3]
[350983817,1738266654183,-988.41,0.00019315,3]
[350983818,1738266654192,-500.0,0.00019315,3]
[350983819,1738266654201,-1281.29,0.00019315,3]
[350983820,1738266654210,-500.0,0.00019315,3]
[350983821,1738266654219,-1630.61,0.00019315,3]
[350983822,1738266654228,-500.0,0.00019315,3]
[350983823,1738266654237,-500.0,0.00019315,3]
[350983824,1738266654246,-554.51,0.00019315,3]
[350983825,1738266654255,-598.97,0.00019315,3]
[350983826,1738266654264,-1848.43,0.00019315,3]
[350983827,1738266654274,-500.0,0.00019315,3]
[350983828,1738266654284,-1206.12,0.00019315,3]
[350983829,1738266654293,-641.05,0.00019315,3]
[350983830,1738266654303,-1972.56,0.00019315,3]
[350983831,1738266654313,-1103.17,0.00019315,3]
[350983832,1738266654322,-931.61,0.00019315,3]
[350983833,1738266654333,-500.0,0.00019315,3]
[350983834,1738266654347,-500.0,0.00019315,3]
[350983835,1738266654357,-500.0,0.00019315,3]
[350983836,1738266654366,-500.0,0.00019315,3]
[350983837,1738266654378,-1872.32,0.00019315,3]
[350983838,1738266654390,-503.25649064,0.00019315,3]
[350983839,1738266654400,-503.1253179,0.00019315,3]
[350983840,1738266654410,-572.91,0.00019315,3]
[350983841,1738266654421,-3097.69,0.00019315,3]
[350983842,1738266654432,-503.78174763,0.00019315,3]
[350983843,1738266654443,-500.0,0.00019315,3]
[350983844,1738266654453,-1349.94,0.00019315,3]
[350983845,1738266654463,-500.0,0.00019315,3]
[350983846,1738266654472,-275.47904391,0.00019315,3]
[350983847,1738266654481,-699.75,0.00019315,3]
[350983848,1738266654491,-1249.93,0.00019315,3]
[350983849,1738266654501,-1251.77,0.00019315,3]
[350983850,1738266654511,-974.0,0.00019315,3]
[350983851,1738266654521,-500.0,0.00019315,3]
[350983852,1738266654531,-500.0,0.00019315,3]
[350983853,1738266654541,-500.0,0.00019315,3]
[350983854,1738266654551,-151.0,0.00019315,2]
[350983855,1738266654561,-151.0,0.00019315,2]
[350983856,1738266654571,-500.0,0.00019315,3]
[350983857,1738266654582,-1131.73,0.00019315,3]
[350983858,1738266654592,-500.0,0.00019315,3]
[350983859,1738266654602,-500.0,0.00019315,3]
[350983860,1738266654612,-500.0,0.00019315,3]
[350983861,1738266654623,-1140.85,0.00019315,3]
[350983862,1738266654634,-2406.25,0.00019315,3]
[350983863,1738266654643,-555.24,0.00019315,3]
[350983864,1738266654654,-629.96,0.00019315,3]
[350983865,1738266654664,-500.0,0.00019315,3]
[350983866,1738266654674,-500.0,0.00019315,3]
[350983867,1738266654683,-500.0,0.00019315,3]
[350983868,1738266654693,-1020.52,0.00019315,3]
[350983869,1738266654703,-1177.72,0.00019315,3]
[350983870,1738266654712,-613.12180638,0.00019315,3]
[350983871,1738266654722,-712.69,0.00019315,3]
[350983872,1738266654732,-1057.1,0.00019315,3]
[350983873,1738266654741,-500.0,0.00019315,3]
[350983874,1738266654751,-500.0,0.00019315,3]
[350983875,1738266654761,-1463.42,0.00019315,3]
[350983876,1738266654770,-500.0,0.00019315,3]
[350983877,1738266654781,-500.0,0.00019315,3]
[350983878,1738266654791,-500.0,0.00019315,3]
[350983879,1738266654801,-1316.13,0.00019315,3]
[350983880,1738266654810,-500.0,0.00019315,3]
[350983881,1738266654820,-500.0,0.00019315,3]
[350983882,1738266654831,-500.0,0.00019315,3]
[350983883,1738266654841,-500.0,0.00019315,3]
[350983884,1738266654851,-781.52,0.00019315,3]
[350983885,1738266654861,-2103.72,0.00019315,3]
[350983886,1738266654872,-742.26,0.00019315,3]
[350983887,1738266654883,-500.0,0.00019315,3]
[350983888,1738266654893,-500.0,0.00019315,3]
[350983889,1738266654903,-151.0,0.00019315,2]
[350983890,1738266654913,-500.0,0.00019315,3]
[350983891,1738266654924,-500.0,0.00019315,3]
[350983892,1738266654934,-1073.24,0.00019315,3]
[350983893,1738266654944,-500.0,0.00019315,2]
[350983894,1738266654954,-1419.4,0.00019315,3]
[350983895,1738266654964,-500.0,0.00019315,3]
[350983896,1738266654974,-500.0,0.00019315,3]
[350983897,1738266654984,-500.0,0.00019315,3]
[350983898,1738266654994,-527.55,0.00019315,3]
[350983899,1738266655004,-500.0,0.00019315,3]
[350983900,1738266655014,-500.0,0.00019315,3]
[350983901,1738266655023,-550.98,0.00019315,3]
[350983902,1738266655032,-500.0,0.00019315,3]
[350983903,1738266655042,-2060.27,0.00019315,3]
[350983904,1738266655052,-500.0,0.00019315,3]
[350983905,1738266655062,-500.0,0.00019315,3]
[350983906,1738266655072,-500.0,0.00019315,3]
[350983907,1738266655082,-500.0,0.00019315,3]
[350983908,1738266655092,-500.0,0.00019315,3]
[350983909,1738266655102,-580.82,0.00019315,3]
[350983910,1738266655112,-1368.29,0.00019315,3]
[350983911,1738266655123,-500.0,0.00019315,3]
[350983912,1738266655132,-500.0,0.00019315,3]
[350983913,1738266655142,-1415.41,0.00019315,3]
[350983914,1738266655152,-846.84,0.00019315,3]
[350983915,1738266655163,-1482.91,0.00019315,3]
[350983916,1738266655173,-500.0,0.00019315,3]
[350983917,1738266655184,-577.47,0.00019315,3]
[350983918,1738266655193,-675.12,0.00019315,3]
[350983919,1738266655204,-500.0,0.00019315,3]
[350983920,1738266655214,-1113.96,0.00019315,3]
[350983921,1738266655224,-500.0,0.00019315,3]
[350983922,1738266655234,-500.0,0.00019315,3]
[350983923,1738266655245,-1046.1,0.00019315,3]
[350983924,1738266655255,-500.0,0.00019315,3]
[350983925,1738266655266,-1211.95,0.00019315,3]
[350983926,1738266655276,-500.0,0.00019315,3]
[350983927,1738266655285,-730.52,0.00019315,3]
[350983928,1738266655296,-500.0,0.00019315,3]
[350983929,1738266655306,-689.91,0.00019315,3]
[350983930,1738266655316,-2333.65,0.00019315,3]
[350983931,1738266655326,-500.0,0.00019315,3]
[350983932,1738266655340,-2519.49,0.00019315,3]
[350983933,1738266655352,-500.0,0.00019315,3]
[350983934,1738266655362,-500.0,0.00019315,3]
[350983935,1738266655373,-500.0,0.00019315,3]
[350983936,1738266655385,-500.0,0.00019315,3]